Account Name 2,Posted Date,Billing Amount,Merchant Name,Description
DFT/HIGH SPEED 2,12/01/2015,520.00,HILTON,"Conference, 25 attendees"
DFT/HIGH SPEED 2,26/01/2015,588.25,WORLD OF TRAVEL,Venue Hire 1 day
DFT/HIGH SPEED 2,30/01/2015,600.00,FULLSTOP FIRE & SECURI,Security equipment
DFT/HIGH SPEED 2,19/01/2015,720.00,LEVEL 39 LTD,Venue Hire 1 day
DFT/HIGH SPEED 2,13/01/2015,778.80,THE KNOWLEDGE ACADEMY,Training course 1 person 4 days
DFT/HIGH SPEED 2,30/01/2015,830.00,UNIVERSITY OF LONDON,Examination fees
DFT/HIGH SPEED 2,08/01/2015,938.00,TRFSA   THOMSONREUTERS,Books / publications
DFT/HIGH SPEED 2,30/01/2015,"1,000.00",CHURCH HOUSE CONF,Venue hire 30 individuals
DFT/HIGH SPEED 2,12/01/2015,"1,248.00",LB TOWER HMLT/INET,Building inspection (refunded)
DFT/HIGH SPEED 2,09/01/2015,"1,568.60",WORLD OF TRAVEL,Venue hire 30 individuals 1 day
DFT/ISE,06/01/2015,513.60,CIVIL SERVICE LEARNING,Training course for 1 staff for 2 days
DFT/ISE,26/01/2015,580.38,WWW.REEDLEARNING.C,Training course for one staff member over a day
DFT/R & S,08/01/2015,840.00,LSR TRAINING AND DEVEL,Staff training for 1 person for 1 day
DFT/R & S,09/01/2015,840.00,LSR TRAINING AND DEVEL,Staff training for 1 person for 1 day
DFT/ISE,15/01/2015,840.00,PETANS LTD,Training course for 1 staff for 2 days
DFT/ISE,30/01/2015,840.00,EML LEARNING,Training course for 1 staff for 2 days
DFT/ISE,27/01/2015,916.80,SOUTHERN TRAILERS LTD,Annual Service and repair of trailer
DFT/ISE,16/01/2015,"1,188.73","LYNDA.COM, INC.",Annual Software Training package subscription x 5 staff
DFT/ISE,14/01/2015,"1,256.68",VODAFONE,Mobile phone charges x 33 staff
DFT/R & S,08/01/2015,"1,680.00",LSR TRAINING AND DEVEL,Staff training for 2 people for 1 day
DFT/R & S,09/01/2015,"1,800.00",CITY UNIVERSITY,Staff training for 4 people for 1 day
DFT/ISE,23/01/2015,"2,521.77",XSENS,Technical equipment
DFT/ISE,16/01/2015,"2,579.38",FEDERAL EXPRESS EUROPE,Customs charge
DFT/R & S,28/01/2015,518.40,ST. LUKES PAROCHIAL TR,Room hire
DFT/R & S,06/01/2015,528.00,ST. LUKES PAROCHIAL TR,Room hire
DFT/R & S,27/01/2015,534.00,WWW.PMGLTD.CO.UK,Staff training for 1 person for 1 day
DFT/R & S,13/01/2015,540.00,WHITEHALL & INDUST,Staff training for 1 person for 1 day
DFT/R & S,07/01/2015,594.00,WWW.PMGLTD.CO.UK,Training course 1 person 1 day
DFT/R & S,15/01/2015,610.54,AL-MEDIA UK B LTD,Professional services
DFT/R & S,16/01/2015,732.32,OSMOND GROUP LTD,Specialist furniture
DFT/R & S,22/01/2015,774.00,WP-ACCESS DISPLAYS,Furniture
DFT/R & S,23/01/2015,897.56,COVENTRY UNIVERSITY,Staff training for 1 person for 2 days
DFT/R & S,08/01/2015,"1,029.60",UNIVERSITY OF LONDON,Stand at graduate fair
DFT/R & S,16/01/2015,"1,416.48",OSMOND GROUP LTD,Specialist furniture
DFT/R & S,23/01/2015,"1,423.20",WWW.MICROLINKPC.CO,Specialist Software
DFT/R & S,06/01/2015,"2,706.40",OSMOND GROUP LTD,Specialist furniture
DFT/R & S,07/01/2015,511.20,CIVIL SERVICE LEARNING,Staff training
DFT/R & S,28/01/2015,523.20,CIVIL SERVICE LEARNING,Staff training
DFT/R & S,12/01/2015,616.80,CIVIL SERVICE LEARNING,Staff training
DFT/R & S,07/01/2015,618.00,CIVIL SERVICE LEARNING,Staff training
DFT/R & S,14/01/2015,656.40,CIVIL SERVICE LEARNING,Staff training
DFT/R & S,27/01/2015,744.00,HOC DIS,Team visit to House of Commons
DFT/R & S,26/01/2015,794.40,CIVIL SERVICE LEARNING,Staff training
DFT/R & S,27/01/2015,794.40,CIVIL SERVICE LEARNING,Staff training
DFT/R & S,16/01/2015,918.06,STATIONERY OFFICE BOOK,Provision of Parliamentary Papers
DFT/R & S,06/01/2015,919.20,CIVIL SERVICE LEARNING,Staff training
DFT/R & S,07/01/2015,955.20,CIVIL SERVICE LEARNING,Staff training
DFT/R & S,12/01/2015,985.20,CIVIL SERVICE LEARNING,Staff training
DFT/R & S,13/01/2015,985.20,CIVIL SERVICE LEARNING,Staff training
DFT/R & S,08/01/2015,"2,880.00",CIVIL SERVICE LEARNING,Staff training
DFT/R & S,26/01/2015,"3,756.00",CIVIL SERVICE LEARNING,Staff training
DFT/R & S,26/01/2015,"3,756.00",CIVIL SERVICE LEARNING,Staff training
DFT/R & S,26/01/2015,"3,756.00",CIVIL SERVICE LEARNING,Staff training
DFT/R & S,26/01/2015,"3,756.00",CIVIL SERVICE LEARNING,Staff training
DFT/R & S,20/01/2015,"4,507.20",CIVIL SERVICE LEARNING,Staff training
DFT/R & S,28/01/2015,610.68,Regent Taipei DCC 3700,Official Visit 2 persons 1 night
DFT/R & S,16/01/2015,984.00,EUROSTAR INTERNET,Official Visit 2 persons
DFT/RAIL GROUP 200496,28/01/2015,714.00,WWW.XCHANGETRAINING.CO,Training 2 individuals 1 day
DFT/RT&L,06/01/2015,730.00,WWW.ROYALMAIL.COM,Stationery
DFT/RT&L,06/01/2015,730.00,WWW.ROYALMAIL.COM,Stationery
DFT/RT&L,12/01/2015,777.28,KAPLAN FINANCIAL LTD,Training for 1 member of staff over 4 days
DFT/RT&L,08/01/2015,780.00,WHITEHALL & INDUST,Training for 1 member of staff over 1 day
DFT/RT&L,08/01/2015,815.30,BMW BATTERSEA,Vehicle Parts
DFT/RT&L,16/01/2015,"1,000.00",OFFICE FOR NAT STATS,Training for 1 member of staff over 3 days
DFT/RT&L,16/01/2015,"1,255.50",WWW.QA.COM,Training Course 1  member of staff 2 days
DFT/RT&L,30/01/2015,"1,425.00",SCOTTISH,Exam fee for 5 people
DFT/RT&L,23/01/2015,"1,905.59",WWW.MISCO.CO.UK,IT Products
DVLA,15/01/2015,630.00,TRFSA   THOMSONREUTERS,Annual Subscription
DVLA,23/01/2015,"1,080.00",WWW.BIPSOLUTIONS.COM,Attendance award ceremony: 8 people over 1 day
DVLA,19/01/2015,"3,092.31","LYNDA.COM, INC.",Training - 14 people
DVSA,19/01/2015,998.00,WWW.CARPHONEWAREHO,2 x special devices for mobile operational use
DVSA,19/01/2015,998.00,WWW.CARPHONEWAREHO,2 x special devices for mobile operational use
HIGHWAYS AGENCY,27/01/2015,500.00,ENTERPRISE,Hire car insurance excess
HIGHWAYS AGENCY,30/01/2015,500.53,PENNA PLC,Statutory Advertising for work undertaken on HA road network
HIGHWAYS AGENCY,14/01/2015,501.43,PENNA PLC,Statutory Advertising for work undertaken on HA road network
HIGHWAYS AGENCY,27/01/2015,501.43,PENNA PLC,Statutory Advertising for work undertaken on HA road network
HIGHWAYS AGENCY,14/01/2015,505.04,PENNA PLC,Statutory Advertising for work undertaken on HA road network
HIGHWAYS AGENCY,08/01/2015,512.28,PENNA PLC,Statutory Advertising for work undertaken on HA road network
HIGHWAYS AGENCY,14/01/2015,513.16,PENNA PLC,Statutory Advertising for work undertaken on HA road network
HIGHWAYS AGENCY,09/01/2015,514.70,PENNA PLC,Statutory Advertising for work undertaken on HA road network
HIGHWAYS AGENCY,21/01/2015,517.63,PENNA PLC,Statutory Advertising for work undertaken on HA road network
HIGHWAYS AGENCY,14/01/2015,519.52,PENNA PLC,Statutory Advertising for work undertaken on HA road network
HIGHWAYS AGENCY,14/01/2015,521.25,PENNA PLC,Statutory Advertising for work undertaken on HA road network
HIGHWAYS AGENCY,30/01/2015,525.19,PENNA PLC,Statutory Advertising for work undertaken on HA road network
HIGHWAYS AGENCY,23/01/2015,527.00,PENNA PLC,Statutory Advertising for work undertaken on HA road network
HIGHWAYS AGENCY,08/01/2015,528.21,PENNA PLC,Statutory Advertising for work undertaken on HA road network
HIGHWAYS AGENCY,19/01/2015,528.90,PENNA PLC,Statutory Advertising for work undertaken on HA road network
HIGHWAYS AGENCY,21/01/2015,531.60,PENNA PLC,Statutory Advertising for work undertaken on HA road network
HIGHWAYS AGENCY,14/01/2015,536.89,PENNA PLC,Statutory Advertising for work undertaken on HA road network
HIGHWAYS AGENCY,19/01/2015,545.41,PENNA PLC,Statutory Advertising for work undertaken on HA road network
HIGHWAYS AGENCY,28/01/2015,551.95,PENNA PLC,Statutory Advertising for work undertaken on HA road network
HIGHWAYS AGENCY,14/01/2015,563.50,PENNA PLC,Statutory Advertising for work undertaken on HA road network
HIGHWAYS AGENCY,14/01/2015,563.86,PENNA PLC,Statutory Advertising for work undertaken on HA road network
HIGHWAYS AGENCY,21/01/2015,570.05,PENNA PLC,Statutory Advertising for work undertaken on HA road network
HIGHWAYS AGENCY,05/01/2015,584.25,PENNA PLC,Statutory Advertising for work undertaken on HA road network
HIGHWAYS AGENCY,08/01/2015,584.48,PENNA PLC,Statutory Advertising for work undertaken on HA road network
HIGHWAYS AGENCY,28/01/2015,588.01,PENNA PLC,Statutory Advertising for work undertaken on HA road network
HIGHWAYS AGENCY,19/01/2015,591.04,PENNA PLC,Statutory Advertising for work undertaken on HA road network
HIGHWAYS AGENCY,21/01/2015,592.76,PENNA PLC,Statutory Advertising for work undertaken on HA road network
HIGHWAYS AGENCY,28/01/2015,594.00,PINNACLE PUBLIC RELATI,Training course x 1 delegate
HIGHWAYS AGENCY,08/01/2015,599.77,PENNA PLC,Statutory Advertising for work undertaken on HA road network
HIGHWAYS AGENCY,08/01/2015,604.03,PENNA PLC,Statutory Advertising for work undertaken on HA road network
HIGHWAYS AGENCY,28/01/2015,606.00,ILSH MEDIA LIMITED,Advertisement for regional recruitment campaign
HIGHWAYS AGENCY,14/01/2015,620.88,PENNA PLC,Statutory Advertising for work undertaken on HA road network
HIGHWAYS AGENCY,28/01/2015,620.88,PENNA PLC,Statutory Advertising for work undertaken on HA road network
HIGHWAYS AGENCY,14/01/2015,621.96,PENNA PLC,Statutory Advertising for work undertaken on HA road network
HIGHWAYS AGENCY,08/01/2015,631.46,PENNA PLC,Statutory Advertising for work undertaken on HA road network
HIGHWAYS AGENCY,08/01/2015,650.11,PENNA PLC,Statutory Advertising for work undertaken on HA road network
HIGHWAYS AGENCY,23/01/2015,650.11,PENNA PLC,Statutory Advertising for work undertaken on HA road network
HIGHWAYS AGENCY,14/01/2015,652.70,PENNA PLC,Statutory Advertising for work undertaken on HA road network
HIGHWAYS AGENCY,23/01/2015,675.68,PENNA PLC,Statutory Advertising for work undertaken on HA road network
HIGHWAYS AGENCY,05/01/2015,680.52,PENNA PLC,Statutory Advertising for work undertaken on HA road network
HIGHWAYS AGENCY,14/01/2015,680.82,PENNA PLC,Statutory Advertising for work undertaken on HA road network
HIGHWAYS AGENCY,14/01/2015,680.82,PENNA PLC,Statutory Advertising for work undertaken on HA road network
HIGHWAYS AGENCY,14/01/2015,688.80,CAPITA BUSINESS SERVS,Training course - 1 person
HIGHWAYS AGENCY,14/01/2015,688.80,CAPITA BUSINESS SERVS,Training course - 1 person
HIGHWAYS AGENCY,26/01/2015,718.20,PENNA PLC,Statutory Advertising for work undertaken on HA road network
HIGHWAYS AGENCY,21/01/2015,719.49,PENNA PLC,Statutory Advertising for work undertaken on HA road network
HIGHWAYS AGENCY,12/01/2015,721.00,PENNA PLC,Statutory Advertising for work undertaken on HA road network
HIGHWAYS AGENCY,27/01/2015,721.00,PENNA PLC,Statutory Advertising for work undertaken on HA road network
HIGHWAYS AGENCY,21/01/2015,722.50,PENNA PLC,Statutory Advertising for work undertaken on HA road network
HIGHWAYS AGENCY,30/01/2015,722.51,PENNA PLC,Statutory Advertising for work undertaken on HA road network
HIGHWAYS AGENCY,14/01/2015,725.35,PENNA PLC,Statutory Advertising for work undertaken on HA road network
HIGHWAYS AGENCY,14/01/2015,736.39,CAPITA BUSINESS SERVS,Training course
HIGHWAYS AGENCY,27/01/2015,745.66,PENNA PLC,Statutory Advertising for work undertaken on HA road network
HIGHWAYS AGENCY,21/01/2015,746.86,PENNA PLC,Statutory Advertising for work undertaken on HA road network
HIGHWAYS AGENCY,27/01/2015,746.86,PENNA PLC,Statutory Advertising for work undertaken on HA road network
HIGHWAYS AGENCY,14/01/2015,752.16,PENNA PLC,Statutory Advertising for work undertaken on HA road network
HIGHWAYS AGENCY,14/01/2015,758.64,PENNA PLC,Statutory Advertising for work undertaken on HA road network
HIGHWAYS AGENCY,21/01/2015,772.94,PENNA PLC,Statutory Advertising for work undertaken on HA road network
HIGHWAYS AGENCY,15/01/2015,785.40,WWW.WTGEVENTS.COM,Conference
HIGHWAYS AGENCY,27/01/2015,793.60,PENNA PLC,Statutory Advertising for work undertaken on HA road network
HIGHWAYS AGENCY,19/01/2015,800.24,PENNA PLC,Statutory Advertising for work undertaken on HA road network
HIGHWAYS AGENCY,08/01/2015,804.73,PENNA PLC,Statutory Advertising for work undertaken on HA road network
HIGHWAYS AGENCY,14/01/2015,811.45,PENNA PLC,Statutory Advertising for work undertaken on HA road network
HIGHWAYS AGENCY,08/01/2015,815.86,PENNA PLC,Statutory Advertising for work undertaken on HA road network
HIGHWAYS AGENCY,08/01/2015,816.02,PENNA PLC,Statutory Advertising for work undertaken on HA road network
HIGHWAYS AGENCY,30/01/2015,816.98,PENNA PLC,Statutory Advertising for work undertaken on HA road network
HIGHWAYS AGENCY,21/01/2015,841.94,PENNA PLC,Statutory Advertising for work undertaken on HA road network
HIGHWAYS AGENCY,12/01/2015,847.47,PENNA PLC,Statutory Advertising for work undertaken on HA road network
HIGHWAYS AGENCY,26/01/2015,852.92,PENNA PLC,Statutory Advertising for work undertaken on HA road network
HIGHWAYS AGENCY,08/01/2015,858.99,PENNA PLC,Statutory Advertising for work undertaken on HA road network
HIGHWAYS AGENCY,12/01/2015,859.70,PENNA PLC,Statutory Advertising for work undertaken on HA road network
HIGHWAYS AGENCY,08/01/2015,865.35,PENNA PLC,Statutory Advertising for work undertaken on HA road network
HIGHWAYS AGENCY,14/01/2015,883.20,CAPITA BUSINESS SERVS,Audit training- 1 Person
HIGHWAYS AGENCY,12/01/2015,885.21,PENNA PLC,Statutory Advertising for work undertaken on HA road network
HIGHWAYS AGENCY,30/01/2015,885.21,PENNA PLC,Statutory Advertising for work undertaken on HA road network
HIGHWAYS AGENCY,21/01/2015,920.31,PENNA PLC,Statutory Advertising for work undertaken on HA road network
HIGHWAYS AGENCY,30/01/2015,924.67,PENNA PLC,Statutory Advertising for work undertaken on HA road network
HIGHWAYS AGENCY,28/01/2015,953.40,WWW.LESAR.CO.UK,Office Equipment
HIGHWAYS AGENCY,27/01/2015,974.31,PENNA PLC,Statutory Advertising for work undertaken on HA road network
HIGHWAYS AGENCY,26/01/2015,995.35,PENNA PLC,Statutory Advertising for work undertaken on HA road network
HIGHWAYS AGENCY,14/01/2015,"1,039.06",PENNA PLC,Statutory Advertising for work undertaken on HA road network
HIGHWAYS AGENCY,12/01/2015,"1,088.02",PENNA PLC,Statutory Advertising for work undertaken on HA road network
HIGHWAYS AGENCY,23/01/2015,"1,108.29",PENNA PLC,Statutory Advertising for work undertaken on HA road network
HIGHWAYS AGENCY,28/01/2015,"1,118.62",PERSONNEL HYGIENE SERV,Personal hygiene services
HIGHWAYS AGENCY,19/01/2015,"1,134.87",PENNA PLC,Statutory Advertising for work undertaken on HA road network
HIGHWAYS AGENCY,08/01/2015,"1,142.05",PENNA PLC,Statutory Advertising for work undertaken on HA road network
HIGHWAYS AGENCY,08/01/2015,"1,150.17",PENNA PLC,Statutory Advertising for work undertaken on HA road network
HIGHWAYS AGENCY,08/01/2015,"1,165.83",PENNA PLC,Statutory Advertising for work undertaken on HA road network
HIGHWAYS AGENCY,12/01/2015,"1,254.30",PENNA PLC,Statutory Advertising for work undertaken on HA road network
HIGHWAYS AGENCY,28/01/2015,"1,337.40",PENNA PLC,Statutory Advertising for work undertaken on HA road network
HIGHWAYS AGENCY,21/01/2015,"1,350.00",RED ADVERTISING LIMITED,Recruitment costs
HIGHWAYS AGENCY,21/01/2015,"1,363.78",PENNA PLC,Statutory Advertising for work undertaken on HA road network
HIGHWAYS AGENCY,08/01/2015,"1,378.47",PENNA PLC,Statutory Advertising for work undertaken on HA road network
HIGHWAYS AGENCY,27/01/2015,"1,378.48",PENNA PLC,Statutory Advertising for work undertaken on HA road network
HIGHWAYS AGENCY,12/01/2015,"1,454.70",PENNA PLC,Statutory Advertising for work undertaken on HA road network
HIGHWAYS AGENCY,08/01/2015,"1,499.43",PENNA PLC,Statutory Advertising for work undertaken on HA road network
HIGHWAYS AGENCY,26/01/2015,"1,499.43",PENNA PLC,Statutory Advertising for work undertaken on HA road network
HIGHWAYS AGENCY,14/01/2015,"1,535.07",PENNA PLC,Statutory Advertising for work undertaken on HA road network
HIGHWAYS AGENCY,08/01/2015,"1,719.87",PENNA PLC,Statutory Advertising for work undertaken on HA road network
HIGHWAYS AGENCY,14/01/2015,"1,864.80",CAPITA BUSINESS SERVS,Training course 12 people
HIGHWAYS AGENCY,05/01/2015,"1,902.51",PENNA PLC,Statutory Advertising for work undertaken on HA road network
HIGHWAYS AGENCY,28/01/2015,"2,144.91",PENNA PLC,Statutory Advertising for work undertaken on HA road network
HIGHWAYS AGENCY,14/01/2015,"4,539.44",PENNA PLC,Statutory Advertising for work undertaken on HA road network
HIGHWAYS AGENCY,23/01/2015,"4,539.44",PENNA PLC,Statutory Advertising for work undertaken on HA road network
MARITIME/CSTGUARD AGY,09/01/2015,504.00,J CRADDOCK LANDRVE,5 x tyres
MARITIME/CSTGUARD AGY,20/01/2015,504.00,WWW.HPA.ORG.UK,5 x tyres
MARITIME/CSTGUARD AGY,16/01/2015,525.01,CIVIL SERVICE LEARNING,Training
MARITIME/CSTGUARD AGY,16/01/2015,525.01,CIVIL SERVICE LEARNING,Training
MARITIME/CSTGUARD AGY,09/01/2015,527.65,WWW.ARCO.CO.UK,Torches for surveyors
MARITIME/CSTGUARD AGY,08/01/2015,528.00,LYON EQUIPMENT LTD,Karabiners
MARITIME/CSTGUARD AGY,20/01/2015,588.10,MICROGLOBE PHOTO EQUIP,Binoculars
MARITIME/CSTGUARD AGY,13/01/2015,600.00,SOUTHERN ELECTRIC CONT,Site access for maintenance
MARITIME/CSTGUARD AGY,08/01/2015,856.67,CRUCIAL.COM,9 x modules for servers
MARITIME/CSTGUARD AGY,19/01/2015,890.99,SAR PRODUCTS,20 rockers (rescue equipment)
MARITIME/CSTGUARD AGY,27/01/2015,909.01,"Amazon Svcs Europe,SAR",Colour printer
MARITIME/CSTGUARD AGY,07/01/2015,955.20,CIVIL SERVICE LEARNING,Training
MARITIME/CSTGUARD AGY,15/01/2015,"1,656.72",CAPITA BUS SVS-MOTO,Training
MARITIME/CSTGUARD AGY,16/01/2015,"2,069.08",EQUINOX MAINTENANCE,Replacement television panel
MARITIME/CSTGUARD AGY,09/01/2015,"3,032.94",CAPITA BUS SVS-MOTO,Training course
VEHICLE CERTIFICATION,08/01/2015,748.80,WWW.FURNITUREATWORK.CO,4 x 2 Person lockers
VEHICLE CERTIFICATION,08/01/2015,959.10,491400FCBARKLYSQUARE,"Return flight for 1 - Economy, rechargeable (Paul Hung - MEL-NGO)"
VEHICLE CERTIFICATION,08/01/2015,"1,021.20",WWW.FURNITUREATWORK.CO,"7 Chairs, various types for Midland Centre"
VEHICLE CERTIFICATION,13/01/2015,"1,095.59",NLI SHAREFILE,Trial of share file for up to 50 users
VEHICLE CERTIFICATION,19/01/2015,536.30,Stena Line Ltd,Ferry - Economy Return
VEHICLE CERTIFICATION,14/01/2015,697.93,AJU AUTO RENTAL AGENCY,4 Weeks car hire
VEHICLE CERTIFICATION,09/01/2015,763.68,TICKETS,Return flight for 1 - Economy
VEHICLE CERTIFICATION,29/01/2015,778.80,WWW.IMECHE.ORG,Training Course
VEHICLE CERTIFICATION,28/01/2015,"1,170.33",THAIAIRW WEB (YEN),Return flight for 1 - Business
VEHICLE CERTIFICATION,27/01/2015,"1,708.06",ROLLINGHEELSGUANGUANGHOTE,Hotel room for 13 nights
VEHICLE CERTIFICATION,27/01/2015,"1,708.06",ROLLINGHEELSGUANGUANGHOTE,Hotel room for 13 nights
VOSA,06/01/2015,510.00,MERCURE HOLLAND HOUSE HOT,Venue hire for overseas delegation
VOSA,30/01/2015,510.00,CHESTER TOWBAR AND TRA,Equipment for vehicle
VOSA,07/01/2015,565.95,PREMIER INN44528255,Accommodation DBB 1 person 5 nights
VOSA,23/01/2015,584.20,JOHNSTON PRESS NORTH,Legal notice in press
VOSA,19/01/2015,594.75,THE QUEENS HOTEL,HB for 1 x 5 nights & car park fees
VOSA,23/01/2015,602.00,PREMIER INN44022300,B/B for 1 x 6 nights - training course
VOSA,12/01/2015,625.00,THE QUEENS HOTEL,HB for 1 x 5 nights
VOSA,01/01/2015,638.34,HUMBER AUTO ELECTRIC LTD,Vehicle repairs
VOSA,12/01/2015,645.18,THE QUEENS HOTEL,HB for 1 x 5 nights & car park fees
VOSA,12/01/2015,704.00,TRAVELODGE AGENT,Room only accommodation 1 night 9 persons
VOSA,12/01/2015,704.75,THE QUEENS HOTEL,HB for 1 x 5 nights & car park fees
VOSA,22/01/2015,733.94,WWW.TRANSPORTTIMES.CO.,Attendance at conference 3 individuals
VOSA,29/01/2015,752.00,MARRIOTT,B/B for 4 x 2 nights for urgent meeting
VOSA,26/01/2015,887.50,PREMIER INN44521620,BB x 2 for 5 nights - training course 
